Cogmind - Beta 15 @@@ ROGUE MODE // 2025.08.10 @ 17:17:21 Player: kim.jet.wav Result: Destroyed by as-04522 with Assembled F-torch Performance ------------- Evolutions (0) 0 Regions Visited (2) 400 Robots Destroyed (13) 65 Value Destroyed (203) 203 Prototype IDs (0) 0 Alien Tech Used (0) 0 Bonus (0) 0 TOTAL SCORE: 668 Bonus ------- None Cogmind --------- Core Integrity 0/250 Matter 202/300 Energy 100/100 System Corruption 7% Temperature Hot (205) Movement Core (200) Ox3 Location -10/Mines Parts ------- > --- POWER (1) -------- (None) > --- PROPULSION (2) --- (None) > --- UTILITY (2) ------ Medium Storage Unit > --- WEAPON (2) ------- (None) > --- INVENTORY (10) --- Light Ion Engine Improved Heat Sink Experimental Sensor Array Terrain Scanner Terrain Scan Processor Seismic Detector Particle Gun Peak State ------------ > --- POWER ------------ Ion Engine > --- PROPULSION ------- Aluminum Leg Aluminum Leg > --- UTILITY ---------- Medium Storage Unit Sensor Array > --- WEAPON ----------- EM Pulse Gun Grenade Launcher > --- INVENTORY -------- Light Ion Engine Improved Heat Sink Experimental Sensor Array Terrain Scanner Terrain Scan Processor Seismic Detector Medium Laser Particle Gun [Rating: 9] Favorites ----------- Power Ion Engine Engine Ion Engine Propulsion Aluminum Leg Leg Aluminum Leg Utility Medium Storage Unit Device Sensor Array Storage Medium Storage Unit Weapon EM Pulse Gun Energy Gun EM Pulse Gun Launcher Grenade Launcher Build | -11 -10 -10 ------- Run | Yrd Mat Min Slots Evolved . | . . . Power . | . . . Propulsion . | . . . Utility . | . . . Weapon . | . . . Parts Attached 10 | 7 2 1 Power 1 | 1 . . Engine 1 | 1 . . Core . | . . . Reactor . | . . . Propulsion 2 | 2 . . Treads . | . . . Leg 2 | 2 . . Wheel . | . . . Hover . | . . . Flight . | . . . Utility 4 | 2 2 . Device 2 | 1 1 . Storage 2 | 1 1 . Processor . | . . . Hackware . | . . . Protection . | . . . Artifact . | . . . Weapon 3 | 2 . 1 Energy Gun 2 | 2 . . Energy Cannon . | . . . Ballistic Gun . | . . . Ballistic Cannon . | . . . Launcher 1 | . . 1 Special Weapon . | . . . Impact Weapon . | . . . Slashing Weapon . | . . . Piercing Weapon . | . . . Special Melee Weapon . | . . . Unidentified Prototypes . | . . . Parts Lost 7 | . . 7 Power 1 | . . 1 Propulsion 2 | . . 2 Utility 1 | . . 1 Weapon 3 | . . 3 Highest Loss Streak 5 | . . 5 To Critical Strikes . | . . . Average Backups 4 | . 3 7 Power . | . 1 1 Propulsion . | . . . Utility 2 | . 1 4 Weapon 1 | . . 1 Tool/Special . | . . . Unused Backups 6 | . . 6 Power 1 | . . 1 Propulsion . | . . . Utility 4 | . . 4 Weapon 1 | . . 1 Tool/Special . | . . . Average Slot Usage (%) 98 | . 98 98 Engine 14 | . 14 14 Leg 27 | . 28 26 Device 14 | . 14 14 Storage 14 | . 14 14 Energy Gun 22 | . 26 18 Launcher 5 | . . 9 Peak Build Rating 9 | 7 7 9 Average Rating 7 | 5 6 8 On Entrance 4 | . 7 7 Naked Turns . | . . . Heaviest Build 21 | 15 20 21 Greatest Support 20 | 20 20 20 Greatest Overweight (x) 1 | 1 . 1 Average Overweight (x) . | . . . Largest Inventory Capacity 10 | 8 10 10 Average Capacity 9 | 7 9 10 Most Carried 8 | 1 5 8 Average Carried 5 | . 3 7 Final Capacity 10 | 8 10 10 Final Carried 7 | 1 5 7 Class Distribution -------------------- 100% | Mutant Dominant Class ---------------- Mutant | -10/Materials Mutant | -10/Mines Resources | -11 -10 -10 ----------- Run | Yrd Mat Min Matter Collected 300 | 270 30 . Remotely . | . . . Salvage Created 488 | 181 193 114 Parts 33 | 12 17 4 Haulers Intercepted . | . . . Recyclers Shooed . | . . . Parts Field Recycled . | . . . Retrieved Matter . | . . . Parts Self-Destructed . | . . . Prevented . | . . . Kills | -11 -10 -10 ------- Run | Yrd Mat Min Combat Hostiles Destroyed 7 | . 1 6 Guns 4 | . 1 3 AOE 3 | . . 3 Classes Destroyed 8 | 2 5 1 Worker 1 | . 1 . Builder 1 | . 1 . Tunneler 4 | 4 . . Recycler 2 | 1 1 . Operator 1 | . 1 . Watcher 1 | . 1 . Grunt 3 | . 1 2 Assembled 4 | . . 4 Best Kill Streak 6 | 5 6 4 Combat Bots Only 4 | . 1 4 Max Kills in Single Turn 1 | 1 1 1 Gunslinging . | . . . Exploded 1 | . . 1 Melee . | . . . Uniques/NPCs Destroyed . | . . . Combat | -11 -10 -10 -------- Run | Yrd Mat Min Hostile Shots Fired 60 | . 1 59 Missed 16 | . . 16 Hits 44 | . 1 43 Melee 8 | . . 8 Projectile 36 | . 1 35 Critical Strikes 1 | . . 1 Part Disruptions 1 | . . 1 Damage Taken 795 | . 11 784 Core 258 | . . 258 Absorbed by Shields . | . . . Regen/Repaired (Parts) 11 | . 11 . Core Remaining (%) 100 | 100 . . Volleys Fired 55 | 11 11 33 Largest 2 | 2 2 2 Hottest 90 | 90 90 90 Shots Fired 97 | 22 22 53 Gun 85 | 22 22 41 Cannon . | . . . Launcher 12 | . . 12 Special . | . . . Kinetic . | . . . Thermal 39 | 11 11 17 Explosive 12 | . . 12 Electromagnetic 46 | 11 11 24 Robot Hit Streak 8 | 7 8 6 Robot Miss Streak 4 | 2 3 4 Penetration Max . | . . . Secondary Targets . | . . . Shots Hit Robots 49 | 13 13 23 Core Hits 28 | 6 7 15 Critical Kills . | . . . Critical Parts Destroyed . | . . . Critical Strikes 5 | 1 1 3 Burn 4 | 1 1 2 Corrupt 1 | . . 1 Melee Attacks . | . . . Impact . | . . . Slashing . | . . . Piercing . | . . . Sneak Attacks . | . . . Combat Hostiles . | . . . Follow-up Attacks . | . . . Damage Inflicted 787 | 167 194 426 Guns 557 | 167 171 219 Cannons . | . . . Explosions 227 | . 23 204 Melee . | . . . Ramming 3 | . . 3 Kinetic . | . . . Thermal 276 | 75 72 129 Explosive 174 | . . 174 Electromagnetic 334 | 92 122 120 Impact . | . . . Slashing . | . . . Piercing . | . . . Highest Corruption 7 | . . 7 Average Corruption 2 | . . 2 Corruption Purged . | . . . Corruption Blocked . | . . . Overload Shots . | . . . Overflow Damage 2 | . . 2 Projectiles . | . . . Explosions 2 | . . 2 Melee . | . . . Knockbacks . | . . . Impact . | . . . Kinetic . | . . . Secondary . | . . . Self-Inflicted Damage 133 | . . 133 Shots 5 | . . 5 Rammed 1 | . . 1 Targets Rammed 2 | . . 2 Kicked 1 | . . 1 Crushed . | . . . Highest Temperature 216 | 196 216 215 Average Temperature 95 | 110 113 79 Received Heat Transfer 257 | . 6 251 Siege Activations . | . . . Martial Activations . | . . . Shielding Activations . | . . . Robots Disrupted . | . . . Combat Hostiles . | . . . Robots Corrupted . | . . . Combat Hostiles . | . . . Parts Fried . | . . . Impact Corruptions . | . . . Robots Melted . | . . . Combat Hostiles . | . . . Parts Melted . | . . . Heat Transferred 1012 | 296 222 494 Parts Sabotaged . | . . . Parts Stolen . | . . . Parts Stripped . | . . . Power Chain Reactions 2 | . 1 1 Alert | -11 -10 -10 ------- Run | Yrd Mat Min Maximum Alert Level . | . . . Low Security (%) 100 | 100 100 100 Level 1 . | . . . Level 2 . | . . . Level 3 . | . . . Level 4 . | . . . Level 5 . | . . . High Security . | . . . Max Security . | . . . Peak Influence 72 | 15 42 72 Initial . | . . . Average 10 | 2 7 14 Influence Increases 196 | 25 57 114 Destroy 0b10 Robot/C 60 | . 20 40 Destroy 0b10 Robot/NC 50 | 25 25 . Destroy Leader 22 | . 12 10 Disable Machine 15 | . . 15 Destroy Structure 49 | . . 49 Influence Decreases 196 | 25 57 114 Time Decay 176 | 25 57 94 Lost Part 20 | . . 20 Squads Dispatched 1 | . 1 . Investigation . | . . . Extermination . | . . . Reinforcement 1 | . 1 . Assault . | . . . Garrison . | . . . Intercept . | . . . Searches Triggered . | . . . Construction Impeded . | . . . Haulers Reinforced . | . . . Active Scanning Responses . | . . . Cargo Convoy Interrupts . | . . . Stealth | -11 -10 -10 --------- Run | Yrd Mat Min Distress Signals . | . . . Communications Jammed . | . . . Distress Signals . | . . . Times Spotted 16 | . 5 11 Peak Tracking Total 6 | . 3 6 Tactical Retreats . | . . . Traps | -11 -10 -10 ------- Run | Yrd Mat Min Traps Triggered . | . . . Indirectly . | . . . Trap Hack Attempts . | . . . Triggered . | . . . Disarmed . | . . . Reprogrammed . | . . . Reused . | . . . Traps Extracted . | . . . Installed . | . . . Triggered . | . . . Machines | -11 -10 -10 ---------- Run | Yrd Mat Min Machines Disabled 1 | . . 1 Max in Single Turn 1 | . . 1 Machines Repaired . | . . . Machines Dismantled . | . . . Machines Sabotaged . | . . . Overloaded Fab Kills . | . . . Hacking | -11 -10 -10 --------- Run | Yrd Mat Min Machines Accessed 4 | . 4 . Terminals 3 | . 3 . Fabricators . | . . . Repair Stations 1 | . 1 . Recycling Units . | . . . Scanalyzers . | . . . Garrison Access . | . . . Total Hacks 8 | . 8 . Successful 5 | . 5 . Failed 3 | . 3 . Catastrophic . | . . . Database Lockouts . | . . . Manual 2 | . 2 . Terminals 6 | . 6 . Fabricators . | . . . Repair Stations 2 | . 2 . Recycling Units . | . . . Scanalyzers . | . . . Garrison Access . | . . . Terminal Hacks 3 | . 3 . Emergency Access Points 1 | . 1 . Locate Traps 1 | . 1 . Zone Layout 1 | . 1 . Fabricator Hacks . | . . . Repair Station Hacks 2 | . 2 . Scan Component 1 | . 1 . Repair 1 | . 1 . Recycling Unit Hacks . | . . . Scanalyzer . | . . . Garrison Access Hacks . | . . . Unauthorized Hacks . | . . . Terminals . | . . . Fabricators . | . . . Repair Stations . | . . . Recycling Units . | . . . Scanalyzers . | . . . Garrison Access . | . . . Data Cores Recovered . | . . . Used . | . . . Hacking Detections 3 | . 3 . Full Trace Events . | . . . Feedback Events . | . . . Feedback Blocked . | . . . Robot Schematics Acquired . | . . . Robots Built . | . . . Authchips . | . . . Time . | . . . Total Robot Build Rating . | . . . Part Schematics Acquired . | . . . Parts Built . | . . . Authchips . | . . . Time . | . . . Total Part Build Rating . | . . . Parts Repaired 1 | . 1 . Time 26 | . 26 . Parts Recycled . | . . . Recycled Matter . | . . . Retrieved Matter . | . . . Retrieved Components . | . . . Parts Scanalyzed . | . . . Part Schematics Acquired . | . . . Parts Damaged . | . . . Bothacking | -11 -10 -10 ------------ Run | Yrd Mat Min Used RIF Installer . | . . . Robots Hacked . | . . . Non-combat . | . . . Combat . | . . . Robot Hacks Applied . | . . . Relay Couplers Released . | . . . Fabnet Peak Effective % . | . . . Robots Rewired . | . . . Allies Hacked . | . . . Hacks Repelled . | . . . Allies | -11 -10 -10 -------- Run | Yrd Mat Min Total Allies . | . . . Largest Group . | . . . Highest-Rated Group . | . . . Highest-Rated Ally . | . . . Total Orders . | . . . Ally Attacks . | . . . Total Damage . | . . . Kills . | . . . Allies Corrupted . | . . . Allies Melted . | . . . Intel | -11 -10 -10 ------- Run | Yrd Mat Min Active Infowar (turns) 740 | 14 327 399 Sensors 503 | . 104 399 Seismic 237 | 14 223 . Robot Analysis Total . | . . . Derelict Logs Recovered 1 | . . 1 Drone Launches . | . . . Drone Recoveries . | . . . Exploration | -11 -10 -10 ------------- Run | Yrd Mat Min Turns Passed 848 | 111 329 408 Spaces Moved 429 | 57 200 172 Core 5 | 5 . . Treads . | . . . Legs 424 | 52 200 172 Wheels . | . . . Hover . | . . . Flight . | . . . Fastest Speed 50 | 50 120 120 Average Speed 140 | 117 120 172 Slowest Speed 190 | 190 120 190 Overloaded Moves . | . . . Propulsion Burnouts . | . . . Robots Hopped . | . . . Potential Cave-ins . | . . . Cave-ins Triggered . | . . . Exploration Rate (%) 30 | 4 42 44 Regions Visited 2 Branch Regions 1 Pre-discovered Areas . | . . . Known Exits Taken . | . . . Unknown Exits Taken 2 | 1 1 . Scrap Searched . | . . . Spaces Dug 23 | . . 23 Terrain Destroyed 78 | . . 78 Melee . | . . . Projectile . | . . . AOE 78 | . . 78 Terrain Rammed . | . . . Walls Destroyed . | . . . Machines Disabled . | . . . Actions | -11 -10 -10 --------- Run | Yrd Mat Min Total 570 | 76 266 228 Wait 63 | . 47 16 Move 427 | 56 199 172 Hop . | . . . Pick Up 10 | 2 5 3 Fast Attach 7 | 6 1 . Attach 2 | 1 . 1 Detach . | . . . Swap 3 | . 2 1 Drop 1 | . 1 . Fire 55 | 11 11 33 Melee . | . . . Ram 1 | . . 1 Kick 1 | . . 1 Crush . | . . . Escape Stasis . | . . . Rewire . | . . . Trap . | . . . Miscellaneous . | . . . Route ------- -11/Scrapyard -10/Materials (discovered 2 exits: [*Mat] / [*Min]) -10/Mines History --------- Turn | Location | Event 25 | -11/Scrapyard | Discovered new exit (range 15) 112 | -11/Scrapyard | Entered Materials 240 | -10/Materials | Discovered new exit (range 5) 311 | -10/Materials | Build established: Mutant 322 | -10/Materials | Repaired EM Pulse Gun 423 | -10/Materials | Discovered new exit (range 15) 441 | -10/Materials | Entered Mines 516 | -10/Mines | Learned Materials interactive machine intel 544 | -10/Mines | Found a damaged Exp. Sensor Array with a note attached 548 | -10/Mines | Found Prototype Device 628 | -10/Mines | Assembled infested the area 786 | -10/Mines | Core integrity fell below 50% 844 | -10/Mines | Core integrity fell below 20% 849 | -10/Mines | Destroyed by as-04522 with Assembled F-torch Last Messages --------------- 00801_ The unstable cave ceiling collapses. 00815_ as-45517 destroyed. 00822_ The unstable cave ceiling collapses. 00827_ R-06 Scavenger collects Sml. Laser. 00829_ The unstable cave ceiling collapses. 00832_ U-05 Engineer lays Concrete. 00835_ as-13151 suffers critical hit (Burn). 00836_ U-05 Engineer lays Concrete. 00837_ EM Pulse Gun destroyed. 00837_ U-05 Engineer builds a Wall. 00840_ Sensor Array destroyed. 00840_ System corrupted by crushing effect (+2). 00840_ Knocked back. 00844_ as-60631 suffers critical hit (Burn). 00846_ Med. Laser destroyed. 00846_ Kicked as-69799 out of the way. 00848_ Ion Engine destroyed. 00848_ Aluminum Leg destroyed. 00848_ System corrupted by crushing effect (+5). 00848_ Slammed into as-69799. Map ----- +----------------------------------------------------+ | | | ??????????????????????????????????????? | | ??????????????????????????????????????? | | ??????????????????????????????????????? | | ??????????????????????????????????????? | | ??????????????????????????????????????? | | ??????????????????????????????????????? | | ??????????????????????????????????????? | | ??????????????????????????????????????? | | ??????????????????????????????????????? | | ??????????????????????????????????????? | | ??????????????????????????????####????? | | ?????????????????????????????## ##???? | | ?????????????????????????????# ##??? | | ?????????????????????????????# ##?? | | ?????????????????????????????## #?? | | ?????????????????????????????## #?? | | ???????####???????????######## #?? | | ??????## ##????####??# ## ##? | | ?????## #?# #### """ #? | | ##???# #?# """ #? | | ##### #??## # # % """ ##? | | ##??#??#### # #?? | | #??#### # ##?? | | #### ### a ###??? | | ## # #@a ##????? | | a### ##????? | | # % ?# ##???? | | ### ## a ## ##??? | | #??## ### #? | | ##?## ## #?## #? | | ### #= ## #??# # | | % # #??## # | | # ???? # | | # ### # ???? # | | ### #? # #????## | | # #?? #########? #??????##### | | ## ? #?????????a#??????????? | | ?## ????????? ???????????? | | ??# ## ????????? ???????????? | | ??# ##?# ???????? ???????????? | | ?? #???## #????????????????????? | | ?? ##?????###????????????????????? | | ? #?????????????????????????????? | | ? #?????????????????????????????? | | ? ?????????????????????????????? | | ? ?????????????????????????????? | | ?? ### ??????????????????????????????? | | ??????????????????????????????????????? | | ??????????????????????????????????????? | +----------------------------------------------------+ Best States ------------- Heat Dissipation 25 Energy Generation 10 Energy Capacity 250 Matter Stores 300 Matter Capacity 300 Sight Range 16 Robot Scan Range 14 Terrain Scan Density 10 Evasion (%) 55 Item Schematics ----------------- None Robot Schematics ------------------ None Fabricated ------------ Nothing Repaired ---------- EM Pulse Gun | 75% | -10/Materials Alien Tech Used ----------------- None Achievements -------------- None Challenges ------------ None Game ------ Seed BoltSubdwellerThruster Manual? 0 Play Time 01:33:39 Cumulative 39.5 hours Start 2025.08.09 @ 20:00:55 End 2025.08.10 @ 17:17:21 Sessions 1 Manual Loads 0 Difficulty Rogue Special Mode None Game No. 200 Rogue 200 Adventurer 0 Explorer 0 Win Type - Total 0 Types 0/0/0/0/0/0/0/0/0/0 Lore% 14 Gallery% 18 Achievement% 18 Wizard Run 0 Options --------- Layout 0 ASCII 1 Keyboard 1 Movement Numpad Keybinds 1 Fullscreen 1 Font 18/X11 Map View 76x50 Zoom Use 0% Tactical HUD 1 Map Filters NONE Filters NONE Steam 1 RUN: e7cb62ee-b954-4651-88cf-568693e28415